bitfinex-derivatives/quotes_ETHF0:USTF0_20250528
["timestamp","ask_amount","ask_price","bid_price","bid_amount"]
[1748465756673,1.9531,2628.6,2628.5,0.76067]
[1748465764578,2.5806,2628.6,2628.5,0.76067]
[1748465764975,3.34124,2628.6,2628.5,0.76067]
[1748465768081,2.5806,2628.6,2628.5,0.76067]
[1748465768678,2.5806,2628.6,2628.5,0.83530908]
[1748465769784,3.34124,2628.6,2628.5,0.83530908]
[1748465771587,6.54904,2628.6,2628.5,0.83530908]
[1748465772783,6.54904,2628.6,2628.5,0.76067]
[1748465775085,5.7884,2628.6,2628.5,0.76067]
[1748465775389,0.0057044,2628.8,2628.7,0.76061]
[1748465775794,0.7662844,2628.8,2628.7,0.76061]
[1748465775994,0.76069,2628.5,2628.4,18.31566]
[1748465776689,1.3268,2628.5,2628.4,18.31566]
[1748465778086,2.08747,2628.5,2628.4,18.31566]
[1748465779091,1.3268,2628.5,2628.4,18.31566]
[1748465779488,1.3268,2628.5,2628.4,0.76066]
[1748465781091,3.2078,2628.6,2628.5,0.76067]
[1748465781694,4.4876,2628.6,2628.5,0.76067]
[1748465786594,3.2078,2628.6,2628.5,0.76067]
[1748465787700,4.5306,2628.6,2628.5,0.76067]
[1748465788497,4.5306,2628.6,2628.2,5.23334]
[1748465788803,0.76076,2628.2,2628.1,0.6219]
[1748465788995,0.76074,2628.3,2628.2,0.76072]
[1748465789695,4.60064,2628.3,2628.2,0.76072]
[1748465790194,3.8399,2628.3,2628.2,0.76072]
[1748465790688,5.1761,2628.3,2628.2,0.76072]
[1748465792696,5.93683,2628.3,2628.2,0.76072]
[1748465792895,1.3362,2628.3,2628.2,0.76072]
[1748465793198,3.8758,2628.6,2628.4,0.76068]
[1748465793504,3.8758,2628.6,2628.5,0.76067]
[1748465794203,5.116,2628.6,2628.5,0.76067]
[1748465794705,5.87666,2628.6,2628.5,0.76067]
[1748465799310,5.116,2628.6,2628.5,0.76067]
[1748465799606,0.0057044,2628.8,2628.4,1.90173]
[1748465799804,0.0057044,2628.8,2628.7,0.76061]
[1748465801509,0.0057044,2628.8,2628.7,4.55961]
[1748465803009,3.2078,2629.4,2629.3,0.76044]
[1748465803604,4.442,2629.4,2629.3,0.76044]
[1748465805508,4.442,2629.4,2629.3,2.01344]
[1748465808707,5.20241,2629.4,2629.3,2.01344]
[1748465809607,5.86361,2629.4,2629.3,2.01344]
[1748465809811,5.86361,2629.4,2629.3,0.76044]
[1748465810214,5.1032,2629.4,2629.3,0.76044]
[1748465810414,5.86361,2629.4,2629.3,0.76044]
[1748465811410,5.1032,2629.4,2629.3,0.76044]
[1748465812712,5.1032,2629.4,2629.3,2.01664]
[1748465814516,5.86361,2629.4,2629.3,2.01664]
[1748465814919,5.1032,2629.4,2629.3,2.01664]
[1748465815114,5.86361,2629.4,2629.3,2.01664]
[1748465815315,5.1032,2629.4,2629.3,2.01664]
[1748465815511,1.2342,2629.4,2629.3,2.01664]
[1748465816925,0.76039,2629.5,2629.4,0.76041]
[1748465819210,2.0123844,2629.6,2629.5,0.76038]
[1748465820021,1.2520044,2629.6,2629.5,0.76038]
[1748465821417,2.0123544,2629.6,2629.5,0.76038]
[1748465821920,1.2520044,2629.6,2629.5,0.76038]
[1748465823227,0.0057044,2629.6,2629.5,4.55538]
[1748465823434,0.0057044,2629.6,2629.5,5.21318]
[1748465823727,0.0057044,2629.6,2629.5,8.42098]
[1748465825221,0.0057044,2629.6,2629.5,6.45878]
[1748465826721,0.0057044,2629.6,2629.5,23.99878]
[1748465827226,0.0057044,2629.6,2629.5,6.45878]
[1748465827524,0.0057044,2629.6,2629.5,23.99778]
[1748465828026,0.0057044,2629.6,2629.5,23.33998]
[1748465828325,2.5158044,2629.6,2629.5,22.09438]
[1748465829021,2.5158044,2629.6,2629.3,0.76042]
[1748465829022,0.76042,2629.4,2629.3,0.76042]
[1748465829220,1.2772,2629.5,2629.3,17.539]
[1748465829519,2.0376,2629.5,2629.4,0.76041]
[1748465831029,1.2772,2629.5,2629.4,0.76041]
[1748465831420,2.03758,2629.5,2629.4,0.76041]
[1748465831726,1.2772,2629.5,2629.4,0.76041]
[1748465832413,3.2135044,2629.6,2629.5,0.76038]
[1748465832623,0.0057044,2629.6,2629.5,0.76038]
[1748465832825,0.0057044,2629.6,2629.5,2.09968]
[1748465834320,0.0057044,2629.6,2629.5,0.76038]
[1748465834516,0.0057044,2629.6,2629.5,18.29738]
[1748465834721,0.0057044,2629.6,2629.4,3.795]
[1748465834722,3.2135044,2629.6,2629.4,0.7604]
[1748465834921,0.6552,2629.5,2629.4,18.2974]
[1748465835222,1.9872,2629.5,2629.4,0.7604]
[1748465835724,2.74759,2629.5,2629.4,0.7604]
[1748465837630,1.9872,2629.5,2629.4,0.7604]
[1748465838232,2.74759,2629.5,2629.4,0.7604]
[1748465842335,0.76042,2629.4,2629.3,3.795]
[1748465842532,2.75812,2629.4,2629.3,21.331]
[1748465843830,2.75812,2629.4,2629.3,17.536]
[1748465844032,2.75812,2629.4,2629.3,18.29645]
[1748465844239,2.75812,2629.4,2629.1,0.0057044]
[1748465844240,0.76047,2629.2,2629.1,0.7661844]
[1748465844533,0.76047,2629.2,2629.1,18.3021844]
[1748465845137,2.05747,2629.2,2629.1,18.3021844]
[1748465845536,2.05747,2629.2,2629.1,0.0057044]
[1748465845730,1.90137,2629.0,2628.6,0.7606]
[1748465845926,0.76065,2628.7,2628.6,0.7606]
[1748465846232,0.76068,2628.6,2628.5,0.76067]
[1748465846538,2.05768,2628.6,2628.5,0.76067]
[1748465848340,3.2078,2628.8,2628.7,0.76062]
[1748465848539,4.4885,2628.8,2628.7,0.76062]
[1748465848943,5.24909,2628.8,2628.7,0.76062]
[1748465849530,0.6733,2628.9,2628.8,0.76059]
[1748465850735,3.2078,2629.1,2629.0,0.76053]
[1748465850940,4.5601,2629.1,2629.0,0.76053]
[1748465851343,4.5601,2629.1,2629.0,2.03313]
[1748465851535,3.2078,2629.1,2629.0,2.66523]
[1748465851745,3.2078,2629.4,2629.1,1.90125]
[1748465852041,3.2078,2629.4,2629.3,0.76045]
[1748465852339,3.2078,2629.4,2629.3,18.29745]
[1748465852539,4.5601,2629.4,2629.3,18.29745]
[1748465852942,5.32052,2629.4,2629.3,18.29745]
[1748465853445,5.32052,2629.4,2629.3,17.537]
[1748465853945,5.32052,2629.4,2629.3,18.29745]
[1748465854457,4.5601,2629.4,2629.3,18.29745]
[1748465855538,0.0057044,2629.6,2629.5,0.76039]
[1748465856136,0.0057044,2629.6,2629.5,2.70779]
[1748465859140,1.90034,2630.4,2629.5,2.70779]
[1748465859141,1.89998,2630.9,2629.5,10.1552]
[1748465859349,4.5216,2630.5,2630.4,0.76013]
[1748465861239,1.3138,2630.5,2630.4,0.76013]
[1748465862852,2.0739,2630.5,2630.4,0.76013]
[1748465863060,1.3138,2630.5,2630.4,0.76013]
[1748465864946,2.0739,2630.5,2630.4,0.76013]
[1748465867052,1.3138,2630.5,2630.4,0.76013]
[1748465867950,2.0739,2630.5,2630.4,0.76013]
[1748465869051,1.3138,2630.5,2630.4,0.76013]
[1748465871552,1.3138,2630.5,2630.4,2.01913]
[1748465871761,2.0739,2630.5,2630.4,2.01913]
[1748465873560,1.3138,2630.5,2630.4,2.01913]
[1748465875061,0.0057044,2630.7,2630.6,0.76007]
[1748465875562,2.1194444,2630.7,2630.6,0.76007]
[1748465875754,1.3594044,2630.7,2630.6,0.76007]
[1748465877761,1.3594044,2630.7,2630.6,2.10307]
[1748465879363,1.3594044,2630.7,2630.6,2.75567]
[1748465885262,0.0057044,2630.7,2630.6,2.75567]
[1748465890059,0.0057044,2630.7,2630.6,18.27907]
[1748465890368,1.2560044,2630.7,2630.6,18.27907]
[1748465892263,0.0057044,2630.7,2630.6,18.27907]
[1748465892469,0.0057044,2630.7,2630.6,19.56967]
[1748465896163,4.4e-06,2630.8,2630.6,23.8096]
[1748465896362,1.2519,2631.6,2631.5,0.75981]
[1748465896569,1.2519,2631.6,2631.5,18.27581]
[1748465898464,0.6235044,2631.8,2631.5,18.27581]
[1748465898465,0.6235044,2631.8,2631.7,0.75975]
[1748465898668,4.4e-06,2631.8,2631.7,7.75355]
[1748465899067,4.4e-06,2631.8,2631.7,12.75355]
[1748465899374,3.79827463,2634.6,2632.7,0.75946]
[1748465899375,3.2078,2632.8,2632.7,0.75946]
[1748465899570,3.8251,2632.8,2632.7,0.75946]
[1748465899867,0.6173,2632.8,2632.7,0.75946]
[1748465900464,0.0057044,2633.0,2632.9,0.75941]
[1748465901067,1.3205044,2633.0,2632.9,0.75941]
[1748465901663,1.3205044,2633.0,2632.9,3.96721]
[1748465901867,0.0057044,2633.0,2632.9,3.96721]
[1748465902177,0.7591,2634.0,2633.8,0.75913]
[1748465902362,1.3053,2633.9,2633.8,0.75913]
[1748465902556,3.2078,2634.6,2633.7,3.78]
[1748465902759,0.6788,2634.5,2634.0,0.75908]
[1748465902964,0.75902,2634.3,2634.0,0.7647844]
[1748465903169,0.6585,2634.2,2634.0,0.0057044]
[1748465903369,0.6585,2634.2,2634.1,0.75906]
[1748465903569,0.75906,2634.1,2634.0,0.0057044]
[1748465903774,1.41753,2634.2,2634.0,0.7647844]
[1748465904069,0.75906,2634.1,2634.0,0.0057044]
[1748465904571,5.75906,2634.1,2634.0,0.0057044]
[1748465905267,7.01366,2634.1,2634.0,0.0057044]
[1748465912372,2.01366,2634.1,2634.0,0.0057044]
[1748465916577,1.2546,2634.1,2634.0,0.7647944]
[1748465916873,5.22151,2634.3,2634.2,0.75903]
[1748465919670,3.2078,2634.3,2634.2,0.75903]
[1748465920273,2.68246292,2634.5,2634.4,0.75897]
[1748465920469,0.00380292,2634.5,2634.4,0.75897]
[1748465920670,3.2078,2635.4,2635.3,0.75872]
[1748465920976,3.2078,2635.4,2635.3,0.75222805]
[1748465921283,0.75857,2635.9,2635.3,3.2078]
[1748465921479,1.3312,2635.9,2635.4,0.75867]
[1748465921781,0.75859,2635.8,2635.5,0.75865]
[1748465922078,0.75864,2635.6,2635.4,1.32159336]
[1748465922274,1.3312,2635.5,2635.4,1.32159336]
[1748465922778,1.3312,2635.5,2635.4,2.08028336]
[1748465924274,3.2078,2635.7,2635.6,0.75863]
[1748465924474,4.5372,2635.7,2635.6,0.75863]
[1748465925483,5.2958,2635.7,2635.6,0.75863]
[1748465925883,4.5372,2635.7,2635.4,1.32159336]
[1748465926084,0.75863,2635.6,2635.5,0.75864]
[1748465926288,1.3294,2635.6,2635.5,0.75864]
[1748465926784,2.08803,2635.6,2635.5,0.75864]
[1748465927384,1.3294,2635.6,2635.5,0.75864]
[1748465927883,2.08803,2635.6,2635.5,0.75864]
[1748465929687,1.3294,2635.6,2635.5,0.75864]
[1748465929989,1.3294,2635.6,2635.5,2.09704]
[1748465930794,10.1054,2635.6,2634.2,1.89755]
[1748465930981,3.2078,2635.2,2634.9,1.3384]
[1748465931181,1.2843,2635.1,2635.0,0.75879]
[1748465931385,0.75877,2635.1,2635.0,0.75879]
[1748465931684,0.00565655,2635.3,2635.0,1.89701]
[1748465931985,0.00565655,2635.3,2635.2,0.75874]
[1748465932587,0.76437655,2635.3,2635.2,0.75874]
[1748465933679,0.75874,2635.2,2635.1,1.3384]
[1748465934081,2.02674,2635.2,2635.1,1.3384]
[1748465934487,0.75874,2635.2,2635.1,1.3384]
[1748465936186,3.96654,2635.2,2635.1,1.3384]
[1748465936386,0.7588,2635.0,2634.9,0.75883]
[1748465936587,0.7588,2635.0,2634.9,2.04923]
[1748465936889,0.7588,2635.0,2634.9,1.2904]
[1748465937783,0.7588,2635.0,2634.9,2.04923]
[1748465939984,5.25855,2635.2,2635.1,0.75877]
[1748465940186,0.00565655,2635.3,2635.2,0.75874]
[1748465941786,0.76437655,2635.3,2635.2,0.75874]
[1748465941992,0.00565655,2635.3,2635.2,0.75874]
[1748465942293,0.00565655,2635.3,2635.2,1.42264]
[1748465943290,0.76436655,2635.3,2635.2,1.42264]
[1748465943494,0.76436655,2635.3,2634.8,0.00569336]
[1748465943495,0.75883,2634.9,2634.8,0.00569336]
[1748465944097,1.9794,2635.0,2634.8,0.00569336]
[1748465944289,2.09873,2634.9,2634.8,0.76454336]
[1748465944497,1.3399,2634.9,2634.8,0.76454336]
[1748465944794,2.09873,2634.9,2634.8,0.00569336]
[1748465944982,3.2078,2635.1,2635.0,0.7588]
[1748465945180,3.2078,2635.2,2634.8,1.35719336]
[1748465945381,3.2078,2635.2,2634.9,0.75883]
[1748465945382,1.2941,2635.0,2634.9,0.75883]
[1748465948097,1.2941,2635.0,2634.8,0.00569336]
[1748465948298,1.2848,2634.9,2634.8,0.76455336]
[1748465949092,2.5775,2634.9,2634.8,0.76455336]
[1748465949287,6.54413,2634.9,2634.8,0.76455336]
[1748465951191,5.7853,2634.9,2634.8,0.76455336]
[1748465952298,6.54413,2634.9,2634.8,0.00569336]
[1748465953294,11.54413,2634.9,2634.8,0.00569336]
[1748465953595,0.75898,2634.4,2634.3,0.75898]
[1748465953800,3.96678,2634.4,2634.3,0.75898]
[1748465954101,3.2078,2634.4,2633.7,1.89795]
[1748465954299,2.6041,2634.3,2633.8,3.80925]
[1748465954599,2.6041,2634.3,2634.2,0.75903]
[1748465954991,3.3631,2634.3,2634.2,0.75903]
[1748465955198,2.6041,2634.3,2634.2,0.75903]
[1748465955399,1.3162,2634.3,2634.2,0.75903]
[1748465955600,0.6575,2634.3,2634.2,0.75903]
[1748465956206,0.6575,2634.3,2633.8,0.00569336]
[1748465956499,2.04695,2634.2,2634.1,0.75903]
[1748465956706,0.75912,2633.9,2633.8,0.00569336]
[1748465957605,0.75912,2633.9,2633.8,0.76484336]
[1748465957799,0.75912,2633.9,2633.8,0.00569336]
[1748465958004,1.89793,2633.8,2633.2,0.75929]
[1748465958304,0.75928,2633.4,2633.3,0.75927]
[1748465958495,3.2078,2633.6,2632.9,5.10629]
[1748465958700,1.9142,2633.3,2633.2,0.75932]
[1748465959296,5.122,2633.3,2633.0,0.00569336]
[1748465959505,0.75935,2633.1,2633.0,0.76506336]
[1748465959697,0.75935,2633.1,2633.0,0.00569336]
[1748465960996,5.122,2633.3,2633.0,0.00569336]
[1748465961193,0.75935,2633.1,2633.0,0.00569336]
[1748465961599,0.75933,2633.2,2633.0,0.00569336]
[1748465961801,1.226,2633.1,2633.0,0.76507336]
[1748465962311,1.98535,2633.1,2633.0,0.76507336]
[1748465962500,1.226,2633.1,2633.0,0.76507336]
[1748465963397,3.2078,2633.3,2633.2,0.75932]
[1748465963598,1.90969336,2633.5,2633.4,0.75926]
[1748465963800,0.62709336,2633.5,2633.4,0.75926]
[1748465964106,0.00569336,2633.5,2633.4,0.75926]
[1748465964702,1.28829336,2633.5,2633.1,0.75933]
[1748465965003,0.75931,2633.3,2633.2,0.75931]
[1748465965503,0.75935,2633.2,2633.1,0.75934]
[1748465965709,0.75935,2633.1,2633.0,0.00569336]
[1748465966100,2.03805,2633.1,2633.0,0.00569336]
[1748465966703,1.2787,2633.1,2633.0,0.76507336]
[1748465967704,0.00569336,2633.5,2633.0,1.90412336]
[1748465967903,2.04363336,2633.5,2633.4,0.75926]
[1748465968805,0.00569336,2633.5,2633.4,0.75926]
[1748465971511,0.76492336,2633.5,2633.4,0.75926]
[1748465971810,0.00569336,2633.5,2633.4,0.75926]
[1748465977704,3.36e-06,2633.5,2633.4,0.75926]
[1748465979009,3.36e-06,2633.5,2633.4,1.05630337]
[1748465980117,3.36e-06,2633.5,2633.4,6.05630337]
[1748465987120,1.2451,2634.4,2634.3,0.759]
[1748465988026,0.6726,2634.6,2634.5,0.75894]
[1748465988226,2.019,2634.6,2634.5,0.75894]
[1748465988525,2.77791,2634.6,2634.5,0.75894]
[1748465988924,2.019,2634.6,2634.5,0.75894]
[1748465989321,0.63,2634.7,2634.4,1.3051]
[1748465989622,0.63,2634.7,2634.6,0.75891]
[1748465989821,1.9764,2634.7,2634.6,0.75891]
[1748465990229,0.66079336,2634.8,2634.7,0.75889]
[1748465990929,2.68935336,2634.8,2634.7,0.75889]
[1748465991130,1.93049336,2634.8,2634.7,0.75889]
[1748465993928,0.75894,2634.5,2634.4,0.00569336]
[1748465994236,0.75894,2634.5,2634.4,0.76466336]
[1748465994534,1.3081,2634.6,2634.5,0.75894]
[1748465996939,0.75894,2634.5,2634.4,0.76464336]
[1748465997230,2.06703,2634.6,2634.5,0.75894]
[1748465997836,1.3081,2634.6,2634.5,0.75894]
[1748465999435,1.3081,2634.6,2634.5,18.24794]
[1748466000329,0.66079336,2634.8,2634.7,0.75889]
[1748466000539,0.66079336,2634.8,2634.4,0.00569336]
[1748466000834,0.75892,2634.6,2634.5,0.75894]
[1748466001034,2.03971,2634.7,2634.6,0.75892]
[1748466001235,0.75891,2634.7,2634.6,0.75892]
[1748466001436,0.75894,2634.6,2634.5,0.75893]
[1748466002434,0.75894,2634.5,2634.4,0.76465336]
[1748466003234,0.75894,2634.6,2634.5,0.7589]
[1748466004541,0.75891,2634.7,2634.6,0.75889]
[1748466005742,4.62745336,2634.8,2634.7,0.75889]
[1748466007046,0.75893,2634.7,2634.6,0.7589]
[1748466010543,0.75894,2634.5,2634.4,0.00569336]
[1748466011944,0.75894,2634.5,2634.4,0.76466336]
[1748466014853,3.96674,2634.5,2634.4,0.00569336]
[1748466015349,0.75908,2634.1,2634.0,0.75906]
[1748466015753,0.75904,2634.2,2634.1,0.75903]
[1748466015938,0.75902,2634.3,2634.2,0.759]
[1748466017149,0.75906,2634.2,2634.1,0.75904]
[1748466017743,0.75902,2634.3,2634.2,0.75903]
[1748466017943,0.75906,2634.2,2634.1,0.75904]
[1748466020449,0.75906,2634.2,2634.1,2.04244]
[1748466022950,3.96686,2634.2,2634.1,1.2834]
[1748466023151,0.75906,2634.1,2634.0,0.76476336]
[1748466024645,0.75906,2634.1,2634.0,2.05676336]
[1748466028456,0.75906,2634.1,2634.0,0.76476336]
[1748466028663,5.0,2634.1,2633.1,3.2078]
[1748466028959,0.75929,2633.3,2633.2,0.6784]
[1748466029257,0.75929,2633.3,2633.2,1.9764]
[1748466029458,0.75928,2633.4,2633.3,0.75927]
[1748466029758,0.75928,2633.4,2633.3,2.05727]
[1748466030763,0.75928,2633.4,2633.3,1.298]
[1748466031051,0.75928,2633.4,2633.3,2.05729]
[1748466031658,2.02448,2633.4,2633.3,2.05729]
[1748466031859,2.02448,2633.4,2633.3,1.298]
[1748466033658,2.02448,2633.4,2633.1,0.00569336]
[1748466033659,0.75932,2633.2,2633.1,0.00569336]
[1748466034564,0.75932,2633.2,2633.1,0.76504336]
[1748466035359,0.75932,2633.2,2633.1,2.02964336]
[1748466036757,0.75932,2633.2,2633.1,1.27029336]
[1748466037061,0.75932,2633.2,2633.1,0.00569336]
[1748466039261,2.08812,2633.2,2633.1,0.00569336]
[1748466041257,7.08812,2633.2,2633.1,0.00569336]
[1748466042072,0.75958,2632.3,2632.2,4.53557]
[1748466042260,0.75958,2632.3,2632.2,5.21147]
[1748466042860,0.75957,2632.4,2632.3,0.75955]
[1748466043051,0.75957,2632.4,2632.3,2.00895]
[1748466045863,3.2078,2632.8,2632.4,0.75955]
[1748466046063,0.75949,2632.7,2632.6,0.75947]
[1748466046265,0.75949,2632.6,2632.5,2.0806]
[1748466046665,0.75949,2632.6,2632.5,1.3211]
[1748466048467,1.41019,2632.6,2632.5,1.3211]
[1748466048970,2.74819,2632.6,2632.5,1.3211]
[1748466056476,5.95599,2632.6,2632.5,1.3211]
[1748466061177,0.75958,2632.3,2632.2,0.6759]
[1748466061371,0.75958,2632.3,2632.2,1.9017]
[1748466061572,0.75958,2632.3,2632.2,2.66131]
[1748466065267,3.9673,2632.6,2632.5,0.75952]
[1748466066067,3.9673,2632.6,2632.5,1.39932]
[1748466067478,0.7595,2632.6,2632.5,1.39932]
[1748466072983,1.3812,2632.6,2632.5,1.39932]
[1748466073479,0.1139,2632.7,2632.6,0.75949]
[1748466073779,0.1139,2632.7,2632.6,1.98159]
[1748466079286,0.1139,2632.7,2632.6,1.2221]
[1748466079488,0.87336,2632.7,2632.6,1.2221]
[1748466079782,0.75951,2632.5,2632.4,2.05904]
[1748466080586,1.40031,2632.5,2632.4,2.05904]
[1748466082080,2.01521,2632.5,2632.4,2.05904]
[1748466083688,0.75954,2632.4,2632.3,0.75955]
[1748466083888,2.09644,2632.4,2632.3,0.75955]
[1748466084083,1.3369,2632.4,2632.3,2.04745]
[1748466084289,2.01523,2632.5,2632.4,0.75954]
[1748466084489,2.01523,2632.5,2632.4,2.04744]
[1748466108707,1.2557,2632.5,2632.4,2.04744]
[1748466108907,2.13091,2632.6,2632.5,0.75951]
[1748466109107,2.13091,2632.6,2632.5,2.08281]
[1748466109108,0.1139,2632.6,2632.5,2.08281]
[1748466117509,0.1139,2632.6,2632.5,1.3233]
[1748466117510,0.87338,2632.6,2632.5,1.3233]
[1748466117811,0.75957,2632.3,2632.2,0.6759]
[1748466118415,0.75957,2632.3,2632.2,1.9862]
[1748466118713,0.75957,2632.3,2632.2,2.7458]
[1748466120914,0.75957,2632.3,2632.2,2.0699]
[1748466121912,2.03906,2632.4,2632.3,0.75957]
[1748466126915,0.664,2632.5,2632.4,0.75954]
[1748466127119,3.772,2633.1,2632.4,3.2078]
[1748466127422,0.75941,2632.9,2632.8,0.75939]
[1748466127921,2.07831,2632.9,2632.8,0.75939]
[1748466128713,1.3189,2632.9,2632.8,0.75939]
[1748466128919,1.3965,2633.0,2632.9,0.7594]
[1748466129217,0.1139,2633.0,2632.9,0.7594]
[1748466129718,0.1139,2633.0,2632.9,2.0439]
[1748466130223,0.87327,2633.0,2632.9,2.0439]
[1748466130424,2.11977,2633.0,2632.9,0.7594]
[1748466134320,1.3604,2633.0,2632.9,0.7594]
[1748466134615,0.1139,2633.0,2632.9,2.723]
[1748466144024,0.61659336,2633.4,2632.9,7.723]
[1748466144234,0.00569336,2633.4,2633.3,0.75928]
[1748466144426,0.76494336,2633.4,2633.3,1.2688]
[1748466144630,0.76494336,2633.4,2633.3,2.02808]
[1748466146628,0.75931,2633.2,2633.1,4.53032]
[1748466146937,0.75931,2633.2,2633.1,22.00832]
[1748466147434,0.00569336,2633.4,2633.3,0.75928]
[1748466147932,0.00569336,2633.4,2633.3,2.05818]
[1748466148133,0.00569336,2633.4,2633.3,2.69688]
[1748466158343,0.00569336,2633.4,2633.3,5.90468]
[1748466160542,0.00569336,2633.4,2633.3,2.69688]
[1748466160742,0.00569336,2633.4,2633.3,5.90468]
[1748466163546,0.64299336,2633.4,2633.3,5.90468]
[1748466166445,1.96079336,2633.4,2633.3,5.90468]
[1748466166648,2.72004336,2633.4,2633.3,5.26598]
[1748466167644,1.96079336,2633.4,2633.3,5.26598]
[1748466169250,2.72004336,2633.4,2633.3,5.26598]
[1748466170643,1.96079336,2633.4,2633.3,5.26598]
[1748466171044,2.72004336,2633.4,2633.3,5.26598]
[1748466171245,1.96079336,2633.4,2633.3,5.26598]
[1748466180056,2.72004336,2633.4,2633.3,5.26598]
[1748466180263,2.72004336,2633.4,2633.3,25.19408]
[1748466180654,7.72004336,2633.4,2633.3,3.2078]
[1748466180858,0.75942,2632.9,2632.8,0.7594]
[1748466181062,1.2278,2633.3,2633.2,0.75931]
[1748466181257,1.98708,2633.3,2633.2,0.75931]
[1748466181562,1.2278,2633.3,2633.2,0.75931]
[1748466181768,3.85079336,2633.4,2633.3,0.75928]
[1748466181967,3.85079336,2633.4,2633.3,2.08558]
[1748466184072,3.85079336,2633.4,2633.3,19.55158]
[1748466184573,5.10549336,2633.4,2633.3,19.55158]
[1748466184780,5.10549336,2633.4,2633.3,2.08558]
[1748466184961,0.75928,2633.3,2633.2,0.75929]
[1748466185166,0.75935,2633.2,2633.1,0.75933]
[1748466186168,1.3421,2633.3,2633.2,0.75931]
[1748466186374,3.85079336,2633.4,2633.3,0.75928]
[1748466186574,0.75935,2633.1,2632.8,1.89851]
[1748466186769,3.2078,2633.1,2633.0,0.75934]
[1748466187065,3.96714,2633.1,2633.0,18.22434]
[1748466187673,3.2078,2633.1,2633.0,18.22434]
[1748466188174,3.2078,2633.1,2633.0,18.22437]
[1748466188175,3.96714,2633.1,2633.0,18.22437]
[1748466189178,3.96714,2633.1,2633.0,0.75937]
[1748466189368,3.96714,2633.1,2633.0,18.22337]
[1748466190272,3.96714,2633.1,2633.0,0.75937]
[1748466192086,3.2078,2633.1,2632.7,1.2875]
[1748466192271,0.75944,2632.8,2632.7,0.75942]
[1748466192477,0.75944,2632.8,2632.7,18.22442]
[1748466192877,0.75941,2632.9,2632.8,0.75939]
[1748466194177,5.0,2632.9,2632.1,3.76669336]
[1748466194386,0.75956,2632.4,2632.3,0.75955]
[1748466194683,0.75953,2632.5,2632.4,0.75951]
[1748466201684,1.99473,2632.5,2632.4,0.75951]
[1748466203376,2.65573,2632.5,2632.4,0.75951]
[1748466203574,3.32763,2632.5,2632.4,0.75951]
[1748466206588,6.53543,2632.5,2632.4,0.75951]
[1748466208281,5.7759,2632.5,2632.4,0.75951]
[1748466208490,6.53541,2632.5,2632.4,0.75951]
[1748466213688,0.75954,2632.4,2632.3,1.2335]
[1748466213892,1.99594,2632.4,2632.3,1.99307]
[1748466214495,1.2364,2632.4,2632.3,1.99307]
[1748466218296,1.99594,2632.4,2632.3,1.99307]
[1748466218597,1.2364,2632.4,2632.3,1.99307]
[1748466221700,1.99594,2632.4,2632.3,1.99307]
[1748466222298,1.2364,2632.4,2632.3,1.99307]
[1748466223002,1.99594,2632.4,2632.3,1.99307]
[1748466224303,0.7596,2632.2,2632.1,0.00569336]
[1748466224500,3.9674,2632.2,2632.1,0.00569336]
[1748466224807,8.9674,2632.2,2632.1,0.00569336]
[1748466230404,3.9674,2632.2,2632.1,0.00569336]
[1748466239606,3.9674,2632.2,2632.1,0.76531336]
[1748466239904,3.9674,2632.2,2632.1,0.00569336]
[1748466251405,3.9674,2632.2,2632.1,1.25979336]
[1748466255511,4.5784,2632.2,2632.1,1.25979336]
[1748466256917,4.5784,2632.2,2631.5,0.75978]
[1748466256918,0.7598,2631.6,2631.5,0.75978]
[1748466257114,0.7598,2631.6,2631.5,3.24888]
[1748466259422,3.96756,2631.7,2631.6,0.75977]
[1748466259719,3.96756,2631.7,2631.3,0.00383235]
[1748466259720,0.75983,2631.4,2631.3,0.00383235]
[1748466259924,3.96763,2631.4,2631.3,0.00383235]
[1748466261019,3.96763,2631.4,2631.3,1.33163235]
[1748466261916,5.29253,2631.4,2631.3,1.33163235]
[1748466262319,3.96763,2631.4,2631.3,1.33163235]
[1748466268417,3.96763,2631.4,2631.3,2.09149235]
[1748466268814,3.96763,2631.4,2631.3,1.33163235]
[1748466271022,3.96763,2631.4,2631.3,2.09149235]
[1748466271225,3.2078,2631.7,2631.6,0.75974]
[1748466271421,3.96755,2631.7,2631.6,0.75974]
[1748466272317,3.96755,2631.7,2631.6,1.38044]
[1748466273720,0.75983,2631.4,2631.3,0.00383235]
[1748466273919,3.96763,2631.4,2631.3,0.00383235]
[1748466274124,3.96763,2631.4,2631.3,1.30023235]
[1748466281737,3.2078,2631.4,2631.3,2.06009235]
[1748466282830,3.96763,2631.4,2631.3,2.06009235]
[1748466286635,0.75983,2631.4,2631.3,2.06009235]
[1748466289034,3.96763,2631.4,2631.3,1.30023235]
[1748466289341,4.63173,2631.4,2631.3,2.06009235]
[1748466289937,5.89703,2631.4,2631.3,2.06009235]
[1748466290140,4.63173,2631.4,2631.3,2.06009235]
[1748466293139,1.42393,2631.4,2631.3,2.06009235]
[1748466296147,2.68503,2631.4,2631.3,2.06009235]
[1748466298145,4.74722,2631.5,2631.4,0.75983]
[1748466298445,4.63322,2631.5,2631.4,0.75983]
[1748466298943,5.86922,2631.5,2631.4,0.75983]
[1748466303347,2.66142,2631.5,2631.4,0.75983]
[1748466309265,0.75983,2631.4,2631.3,2.06007235]
[1748466309561,0.75983,2631.4,2631.3,0.76369235]
[1748466309761,1.99763,2631.4,2631.3,0.00383235]
[1748466309961,1.99763,2631.4,2631.3,0.76369235]
[1748466315958,0.7541,2631.6,2631.5,0.7598]
[1748466316164,0.1139,2631.6,2631.5,0.7598]
[1748466316368,0.1139,2631.6,2631.5,1.9882]
[1748466316562,0.1139,2631.6,2631.5,2.6204]